[Event "Late-Titled-Tuesday-Blitz-May-28-2024"]
[Site "Chess.com"]
[Date "2024.05.28"]
[Round "8"]
[White "BenchGM"]
[Black "KejJaj"]
[Result "1-0"]
[WhiteElo "2240"]
[BlackElo "2150"]
[TimeControl "180+1"]
[EndTime "15:26:34 PDT"]
[Termination "BenchGM won by resignation"]

1. d4 {[%clk 0:03:00.9]} 1... f5 {[%clk 0:02:58.2]} 2. Nf3 {[%clk 0:02:59.5]}
2... Nf6 {[%clk 0:02:58.7]} 3. g3 {[%clk 0:02:59.6]} 3... e6 {[%clk 0:02:59.3]}
4. Bg2 {[%clk 0:03:00]} 4... d5 {[%clk 0:03:00]} 5. O-O {[%clk 0:02:59.9]} 5...
Bd6 {[%clk 0:02:59.6]} 6. Nbd2 {[%clk 0:02:57.5]} 6... O-O {[%clk 0:02:56.9]} 7.
c4 {[%clk 0:02:55.5]} 7... c6 {[%clk 0:02:56.5]} 8. b3 {[%clk 0:02:54.9]} 8...
Nbd7 {[%clk 0:02:52.8]} 9. a4 {[%clk 0:02:53.5]} 9... Qe7 {[%clk 0:02:51.3]} 10.
Qc2 {[%clk 0:02:52.8]} 10... Ne4 {[%clk 0:02:48]} 11. Bb2 {[%clk 0:02:51.3]}
11... a5 {[%clk 0:02:26.7]} 12. Ne5 {[%clk 0:02:41.5]} 12... Nxe5 {[%clk
0:02:24.9]} 13. dxe5 {[%clk 0:02:42.4]} 13... Bc5 {[%clk 0:02:20.7]} 14. e3
{[%clk 0:02:40.1]} 14... Nxd2 {[%clk 0:02:09.5]} 15. Qxd2 {[%clk 0:02:39.3]}
15... Bb4 {[%clk 0:02:10.2]} 16. Qd3 {[%clk 0:02:38.7]} 16... Bd7 {[%clk
0:02:05.8]} 17. Rfd1 {[%clk 0:02:30.1]} 17... Be8 {[%clk 0:02:02.3]} 18. Bc3
{[%clk 0:02:28.7]} 18... Bh5 {[%clk 0:02:00.2]} 19. Rd2 {[%clk 0:02:28.4]} 19...
Rad8 {[%clk 0:01:55.5]} 20. Rc1 {[%clk 0:02:21.4]} 20... dxc4 {[%clk 0:01:44.7]}
21. Bxb4 {[%clk 0:02:07.3]} 21... Qxb4 {[%clk 0:01:14.6]} 22. Qxd8 {[%clk
0:02:05.1]} 22... Rxd8 {[%clk 0:01:14.4]} 23. Rxd8+ {[%clk 0:02:06]} 23... Kf7
{[%clk 0:01:12.5]} 24. bxc4 {[%clk 0:02:05.2]} 24... Ke7 {[%clk 0:00:59]} 25.
Rb8 {[%clk 0:02:00.5]} 25... Be2 {[%clk 0:00:41.8]} 26. Bxc6 {[%clk 0:01:57.4]}
26... Qd2 {[%clk 0:00:30.2]} 27. Rxb7+ {[%clk 0:01:53.2]} 27... Kf8 {[%clk
0:00:26.8]} 28. Rcb1 {[%clk 0:01:50.6]} 28... Bxc4 {[%clk 0:00:19.6]} 29. Rd7
{[%clk 0:01:48.7]} 29... Qb4 {[%clk 0:00:07.9]} 30. Rxb4 {[%clk 0:01:47.2]} 1-0

[Event "Late-Titled-Tuesday-Blitz-May-28-2024"]
[Site "Chess.com"]
[Date "2024.05.28"]
[Round "8"]
[White "Goryachkina"]
[Black "JonasGallasch"]
[Result "1/2-1/2"]
[WhiteElo "2714"]
[BlackElo "2474"]
[TimeControl "180+1"]
[EndTime "15:26:40 PDT"]
[Termination "Game drawn by repetition"]

1. e4 {[%clk 0:03:00]} 1... c6 {[%clk 0:02:58.3]} 2. d4 {[%clk 0:02:59.2]} 2...
d5 {[%clk 0:02:58.5]} 3. e5 {[%clk 0:02:59.6]} 3... Bf5 {[%clk 0:02:58.3]} 4. h4
{[%clk 0:02:59.1]} 4... h5 {[%clk 0:02:58.1]} 5. Bd3 {[%clk 0:02:58.9]} 5...
Bxd3 {[%clk 0:02:58.2]} 6. Qxd3 {[%clk 0:02:59.3]} 6... Qa5+ {[%clk 0:02:58.8]}
7. Nd2 {[%clk 0:02:58.5]} 7... e6 {[%clk 0:02:59]} 8. Nf3 {[%clk 0:02:52.5]}
8... Ne7 {[%clk 0:02:58.6]} 9. O-O {[%clk 0:02:37.5]} 9... Nf5 {[%clk
0:02:58.5]} 10. c4 {[%clk 0:02:35]} 10... Be7 {[%clk 0:02:57.2]} 11. g3 {[%clk
0:02:34.3]} 11... O-O {[%clk 0:02:56.9]} 12. b3 {[%clk 0:02:22.5]} 12... Rd8
{[%clk 0:02:56.4]} 13. Bb2 {[%clk 0:02:13.8]} 13... c5 {[%clk 0:02:54.1]} 14.
cxd5 {[%clk 0:01:53.1]} 14... Rxd5 {[%clk 0:02:51.9]} 15. Nc4 {[%clk 0:01:52]}
15... Qd8 {[%clk 0:02:40.6]} 16. Ne3 {[%clk 0:01:31.9]} 16... Nxe3 {[%clk
0:02:40.3]} 17. fxe3 {[%clk 0:01:29.2]} 17... cxd4 {[%clk 0:02:40.5]} 18. Bxd4
{[%clk 0:01:16.2]} 18... Nc6 {[%clk 0:02:38.3]} 19. Qe4 {[%clk 0:01:16.2]} 19...
Nxd4 {[%clk 0:02:09.5]} 20. exd4 {[%clk 0:01:16.1]} 20... f5 {[%clk 0:02:07.9]}
21. exf6 {[%clk 0:01:11]} 21... Bxf6 {[%clk 0:02:07.8]} 22. Qxe6+ {[%clk
0:01:11]} 22... Kh8 {[%clk 0:02:08]} 23. Rad1 {[%clk 0:01:04.2]} 23... Rc8
{[%clk 0:02:01.8]} 24. Qe4 {[%clk 0:00:55.4]} 24... Rc3 {[%clk 0:01:58.9]} 25.
Rd3 {[%clk 0:00:40.7]} 25... Rxd3 {[%clk 0:01:50.5]} 26. Qxd3 {[%clk 0:00:40.7]}
26... Bxd4+ {[%clk 0:01:48.7]} 27. Nxd4 {[%clk 0:00:40.8]} 27... Rxd4 {[%clk
0:01:49.6]} 28. Rf8+ {[%clk 0:00:40.2]} 28... Qxf8 {[%clk 0:01:49.3]} 29. Qxd4
{[%clk 0:00:40.7]} 29... Qa3 {[%clk 0:01:33.6]} 30. Qd8+ {[%clk 0:00:29.5]}
30... Kh7 {[%clk 0:01:33.8]} 31. Qd3+ {[%clk 0:00:22.4]} 31... Kh8 {[%clk
0:01:34]} 32. Qd8+ {[%clk 0:00:21.7]} 32... Kh7 {[%clk 0:01:34.4]} 33. Qd3+
{[%clk 0:00:22.1]} 33... Kh8 {[%clk 0:01:34.7]} 34. Qd8+ {[%clk 0:00:22.3]}
1/2-1/2

[Event "Late-Titled-Tuesday-Blitz-May-28-2024"]
[Site "Chess.com"]
[Date "2024.05.28"]
[Round "8"]
[White "el008"]
[Black "RichardShtivelband"]
[Result "1-0"]
[WhiteElo "2555"]
[BlackElo "2382"]
[TimeControl "180+1"]
[EndTime "15:26:41 PDT"]
[Termination "el008 won by resignation"]

1. Nf3 {[%clk 0:03:00.9]} 1... d5 {[%clk 0:02:56.9]} 2. g3 {[%clk 0:03:01.1]}
2... Nc6 {[%clk 0:02:54.5]} 3. d4 {[%clk 0:03:00.9]} 3... h6 {[%clk 0:02:53]} 4.
Bg2 {[%clk 0:02:59.8]} 4... Nf6 {[%clk 0:02:51.7]} 5. c4 {[%clk 0:02:55.4]} 5...
dxc4 {[%clk 0:02:49.1]} 6. Nc3 {[%clk 0:02:54.5]} 6... e6 {[%clk 0:02:48]} 7. e4
{[%clk 0:02:53.3]} 7... Nb4 {[%clk 0:02:44.1]} 8. O-O {[%clk 0:02:52.7]} 8... c6
{[%clk 0:02:42.2]} 9. Ne5 {[%clk 0:02:50.2]} 9... b5 {[%clk 0:02:36.3]} 10. a3
{[%clk 0:02:49.9]} 10... Nd3 {[%clk 0:02:35.8]} 11. Nxc6 {[%clk 0:02:47.8]}
11... Qb6 {[%clk 0:02:34.9]} 12. d5 {[%clk 0:02:45.6]} 12... Bc5 {[%clk
0:02:24.2]} 13. Qe2 {[%clk 0:02:39.8]} 13... O-O {[%clk 0:02:22.4]} 14. a4
{[%clk 0:02:34.3]} 14... exd5 {[%clk 0:02:11.7]} 15. exd5 {[%clk 0:02:29.5]}
15... Bg4 {[%clk 0:02:08.8]} 16. Qc2 {[%clk 0:02:26.2]} 16... b4 {[%clk
0:01:52.1]} 17. a5 {[%clk 0:02:26.4]} 17... Qa6 {[%clk 0:01:41.5]} 18. Na4
{[%clk 0:02:24]} 18... Bd6 {[%clk 0:01:30.5]} 19. Be3 {[%clk 0:02:15.8]} 19...
Qb5 {[%clk 0:01:07.1]} 20. b3 {[%clk 0:02:05.3]} 20... c3 {[%clk 0:01:02.8]} 21.
a6 {[%clk 0:01:52.8]} 21... Nxd5 {[%clk 0:00:53]} 22. Nd4 {[%clk 0:01:51.7]}
22... Nxe3 {[%clk 0:00:51.1]} 23. fxe3 {[%clk 0:01:52.6]} 23... Qe5 {[%clk
0:00:30.3]} 24. Qxd3 {[%clk 0:01:51.3]} 24... Rae8 {[%clk 0:00:25.2]} 25. Rae1
{[%clk 0:01:50]} 25... h5 {[%clk 0:00:20.4]} 26. Qb5 {[%clk 0:01:48.5]} 26...
Qe7 {[%clk 0:00:16.7]} 27. Nc6 {[%clk 0:01:47.5]} 27... Qd7 {[%clk 0:00:16]} 28.
Nc5 {[%clk 0:01:45.3]} 28... Bxc5 {[%clk 0:00:14]} 29. Qxc5 {[%clk 0:01:46.2]}
29... h4 {[%clk 0:00:11.9]} 30. Qxb4 {[%clk 0:01:44.6]} 30... hxg3 {[%clk
0:00:09.4]} 31. hxg3 {[%clk 0:01:45.5]} 31... Rc8 {[%clk 0:00:03.4]} 32. Ne7+
{[%clk 0:01:45.3]} 1-0

[Event "Late-Titled-Tuesday-Blitz-May-28-2024"]
[Site "Chess.com"]
[Date "2024.05.28"]
[Round "8"]
[White "th3d4rkness"]
[Black "YellowJacek"]
[Result "1-0"]
[WhiteElo "2184"]
[BlackElo "2357"]
[TimeControl "180+1"]
[EndTime "15:26:46 PDT"]
[Termination "th3d4rkness won by resignation"]

1. e4 {[%clk 0:03:00.9]} 1... c5 {[%clk 0:02:59.7]} 2. Nc3 {[%clk 0:03:00.4]}
2... Nc6 {[%clk 0:02:59.3]} 3. Bb5 {[%clk 0:02:59.9]} 3... Nd4 {[%clk
0:02:56.8]} 4. Bc4 {[%clk 0:02:59.5]} 4... e6 {[%clk 0:02:53.8]} 5. Nf3 {[%clk
0:02:58.2]} 5... Nxf3+ {[%clk 0:02:49.8]} 6. Qxf3 {[%clk 0:02:57.5]} 6... a6
{[%clk 0:02:50.2]} 7. a4 {[%clk 0:02:56.4]} 7... Qh4 {[%clk 0:02:32.9]} 8. d3
{[%clk 0:02:50.5]} 8... Ne7 {[%clk 0:02:32.7]} 9. Bf4 {[%clk 0:02:45]} 9... Nc6
{[%clk 0:02:31.7]} 10. Bg3 {[%clk 0:02:35.9]} 10... Qf6 {[%clk 0:02:27.2]} 11.
Qxf6 {[%clk 0:02:29.1]} 11... gxf6 {[%clk 0:02:28.1]} 12. Ne2 {[%clk 0:02:24.5]}
12... b6 {[%clk 0:02:12.6]} 13. c3 {[%clk 0:02:23.3]} 13... Ne5 {[%clk
0:02:04.9]} 14. Nc1 {[%clk 0:02:08.5]} 14... Bb7 {[%clk 0:02:01.8]} 15. Bxe5
{[%clk 0:01:51.5]} 15... fxe5 {[%clk 0:02:01.2]} 16. Ne2 {[%clk 0:01:40.5]}
16... d5 {[%clk 0:01:57.4]} 17. exd5 {[%clk 0:01:38.7]} 17... exd5 {[%clk
0:01:58.3]} 18. Bb3 {[%clk 0:01:36.8]} 18... f6 {[%clk 0:01:55.2]} 19. Ng3
{[%clk 0:01:36.6]} 19... Kf7 {[%clk 0:01:51]} 20. O-O {[%clk 0:01:35.8]} 20...
Bd6 {[%clk 0:01:46.8]} 21. Nf5 {[%clk 0:01:33.7]} 21... Bc7 {[%clk 0:01:46.7]}
22. d4 {[%clk 0:01:25]} 22... exd4 {[%clk 0:01:35.1]} 23. cxd4 {[%clk
0:01:23.3]} 23... c4 {[%clk 0:01:35.5]} 24. Bc2 {[%clk 0:01:19.8]} 24... Rhe8
{[%clk 0:01:28.1]} 25. Rfe1 {[%clk 0:01:19.2]} 25... b5 {[%clk 0:01:25.7]} 26.
axb5 {[%clk 0:01:17.5]} 26... axb5 {[%clk 0:01:26.1]} 27. Kf1 {[%clk 0:01:07.6]}
27... b4 {[%clk 0:01:05.4]} 28. Rxa8 {[%clk 0:01:04.8]} 28... Bxa8 {[%clk
0:01:05.2]} 29. Nh6+ {[%clk 0:00:44.9]} 29... Kg7 {[%clk 0:01:02.3]} 30. Rxe8
{[%clk 0:00:43.2]} 30... Kxh6 {[%clk 0:01:02.3]} 31. Rxa8 {[%clk 0:00:42.8]} 1-0

[Event "Late-Titled-Tuesday-Blitz-May-28-2024"]
[Site "Chess.com"]
[Date "2024.05.28"]
[Round "8"]
[White "lluiss"]
[Black "PNEPaul"]
[Result "0-1"]
[WhiteElo "2159"]
[BlackElo "1931"]
[TimeControl "180+1"]
[EndTime "15:26:49 PDT"]
[Termination "PNEPaul won on time"]

1. Nf3 {[%clk 0:03:00.9]} 1... a6 {[%clk 0:02:31.9]} 2. e4 {[%clk 0:02:56.9]}
2... d6 {[%clk 0:02:32.1]} 3. d4 {[%clk 0:02:56.7]} 3... g6 {[%clk 0:02:32.5]}
4. Bd3 {[%clk 0:02:56.4]} 4... h6 {[%clk 0:02:32.6]} 5. O-O {[%clk 0:02:55.7]}
5... Nd7 {[%clk 0:02:32.7]} 6. c4 {[%clk 0:02:55.5]} 6... Bg7 {[%clk 0:02:32.8]}
7. Nc3 {[%clk 0:02:54.8]} 7... e5 {[%clk 0:02:33]} 8. Be3 {[%clk 0:02:51.7]}
8... Ne7 {[%clk 0:02:32.7]} 9. Qd2 {[%clk 0:02:50.2]} 9... f5 {[%clk 0:02:32]}
10. dxe5 {[%clk 0:02:47.3]} 10... dxe5 {[%clk 0:02:31.1]} 11. Qc2 {[%clk
0:01:32.3]} 11... f4 {[%clk 0:02:27.3]} 12. Bd2 {[%clk 0:01:32.3]} 12... O-O
{[%clk 0:02:26.6]} 13. Nd5 {[%clk 0:01:32.4]} 13... c6 {[%clk 0:02:25.2]} 14.
Nxe7+ {[%clk 0:01:29.8]} 14... Qxe7 {[%clk 0:02:25.1]} 15. c5 {[%clk 0:01:19.9]}
15... Kh7 {[%clk 0:02:07.8]} 16. b4 {[%clk 0:01:18.7]} 16... g5 {[%clk
0:02:06.7]} 17. h3 {[%clk 0:01:13.2]} 17... h5 {[%clk 0:02:06.4]} 18. Nh2 {[%clk
0:01:12]} 18... Nf6 {[%clk 0:02:04.3]} 19. g3 {[%clk 0:01:04.2]} 19... Bxh3
{[%clk 0:01:59.4]} 20. Rfe1 {[%clk 0:00:33.6]} 20... Ng4 {[%clk 0:01:47.4]} 21.
Nxg4 {[%clk 0:00:28.7]} 21... Bxg4 {[%clk 0:01:46.4]} 22. gxf4 {[%clk
0:00:24.9]} 22... gxf4 {[%clk 0:01:46.4]} 23. Bf1 {[%clk 0:00:13.7]} 23... Qg5
{[%clk 0:01:30.5]} 24. f3 {[%clk 0:00:01]} 24... Bxf3+ {[%clk 0:01:26.3]} 0-1

[Event "Late-Titled-Tuesday-Blitz-May-28-2024"]
[Site "Chess.com"]
[Date "2024.05.28"]
[Round "8"]
[White "GarayevKanan"]
[Black "Kielinkei"]
[Result "1-0"]
[WhiteElo "2734"]
[BlackElo "2474"]
[TimeControl "180+1"]
[EndTime "15:26:57 PDT"]
[Termination "GarayevKanan won by resignation"]

1. d4 {[%clk 0:02:57.3]} 1... Nf6 {[%clk 0:03:00.1]} 2. c4 {[%clk 0:02:56.9]}
2... e6 {[%clk 0:03:00.6]} 3. g3 {[%clk 0:02:57.6]} 3... Bb4+ {[%clk 0:02:57.4]}
4. Nd2 {[%clk 0:02:57.3]} 4... c5 {[%clk 0:02:53.7]} 5. Nf3 {[%clk 0:02:56.4]}
5... cxd4 {[%clk 0:02:52.3]} 6. a3 {[%clk 0:02:56.9]} 6... Bxd2+ {[%clk
0:02:49.9]} 7. Qxd2 {[%clk 0:02:57.8]} 7... Nc6 {[%clk 0:02:45.2]} 8. Nxd4
{[%clk 0:02:57.6]} 8... O-O {[%clk 0:02:44.4]} 9. Bg2 {[%clk 0:02:57.4]} 9... d5
{[%clk 0:02:45]} 10. cxd5 {[%clk 0:02:53.2]} 10... Nxd4 {[%clk 0:02:41.3]} 11.
Qxd4 {[%clk 0:02:52.5]} 11... Nxd5 {[%clk 0:02:40.3]} 12. O-O {[%clk 0:02:45.3]}
12... Bd7 {[%clk 0:02:40.3]} 13. e4 {[%clk 0:02:42.5]} 13... Ne7 {[%clk
0:02:20.5]} 14. Bf4 {[%clk 0:02:36.8]} 14... Bc6 {[%clk 0:02:17.6]} 15. Bd6
{[%clk 0:02:34.7]} 15... Qd7 {[%clk 0:02:13.7]} 16. Rfd1 {[%clk 0:02:31.1]}
16... Rfd8 {[%clk 0:02:12.7]} 17. Qb4 {[%clk 0:02:22.4]} 17... Nc8 {[%clk
0:02:01.1]} 18. e5 {[%clk 0:02:18.8]} 18... Bxg2 {[%clk 0:01:59.2]} 19. Kxg2
{[%clk 0:02:19.7]} 19... Qc6+ {[%clk 0:01:57.8]} 20. Kg1 {[%clk 0:02:20.3]}
20... Nxd6 {[%clk 0:01:57.7]} 21. exd6 {[%clk 0:02:21.2]} 21... Rd7 {[%clk
0:01:55.1]} 22. Rac1 {[%clk 0:02:21.1]} 22... Qf3 {[%clk 0:01:44]} 23. Qa4
{[%clk 0:02:11.8]} 23... Rdd8 {[%clk 0:01:18.7]} 24. d7 {[%clk 0:02:06]} 24...
h6 {[%clk 0:01:16.2]} 25. Rc3 {[%clk 0:01:56]} 25... Qf6 {[%clk 0:01:11.6]} 26.
Rdc1 {[%clk 0:01:50.1]} 26... Qe7 {[%clk 0:01:07]} 27. Rc8 {[%clk 0:01:50.6]}
27... Qf8 {[%clk 0:00:55]} 28. Rxa8 {[%clk 0:01:35.2]} 28... Rxa8 {[%clk
0:00:54.7]} 29. Rc7 {[%clk 0:01:36.1]} 29... Kh7 {[%clk 0:00:31.8]} 30. Qe4+
{[%clk 0:01:32.9]} 30... g6 {[%clk 0:00:27]} 31. Qxb7 {[%clk 0:01:33.4]} 31...
Rd8 {[%clk 0:00:24.9]} 32. Rc8 {[%clk 0:01:30.9]} 32... Qe7 {[%clk 0:00:13.8]}
33. Rxd8 {[%clk 0:01:30.6]} 33... Qxd8 {[%clk 0:00:14.7]} 34. Qc8 {[%clk
0:01:31.1]} 1-0

[Event "Late-Titled-Tuesday-Blitz-May-28-2024"]
[Site "Chess.com"]
[Date "2024.05.28"]
[Round "8"]
[White "Dacean99"]
[Black "Redzishchess"]
[Result "1-0"]
[WhiteElo "2599"]
[BlackElo "2461"]
[TimeControl "180+1"]
[EndTime "15:26:58 PDT"]
[Termination "Dacean99 won on time"]

1. e4 {[%clk 0:03:00.9]} 1... c5 {[%clk 0:02:58.7]} 2. c3 {[%clk 0:03:00.5]}
2... e6 {[%clk 0:02:55.1]} 3. d4 {[%clk 0:02:59.9]} 3... d5 {[%clk 0:02:54.1]}
4. exd5 {[%clk 0:02:55.3]} 4... Qxd5 {[%clk 0:02:34.9]} 5. Nf3 {[%clk
0:02:54.4]} 5... Nc6 {[%clk 0:02:33.2]} 6. Be3 {[%clk 0:02:51.9]} 6... cxd4
{[%clk 0:02:14.2]} 7. Nxd4 {[%clk 0:02:52.8]} 7... Nxd4 {[%clk 0:02:13.1]} 8.
Qxd4 {[%clk 0:02:52]} 8... Qxd4 {[%clk 0:02:07.6]} 9. Bxd4 {[%clk 0:02:52.9]}
9... Nf6 {[%clk 0:02:06]} 10. Bb5+ {[%clk 0:02:50]} 10... Bd7 {[%clk 0:02:05.9]}
11. Bxd7+ {[%clk 0:02:49.9]} 11... Nxd7 {[%clk 0:02:06.2]} 12. O-O {[%clk
0:02:49.2]} 12... e5 {[%clk 0:02:06.5]} 13. Be3 {[%clk 0:02:48.3]} 13... Bc5
{[%clk 0:02:03.9]} 14. Re1 {[%clk 0:02:47.4]} 14... Bxe3 {[%clk 0:01:56.5]} 15.
Rxe3 {[%clk 0:02:48.3]} 15... O-O-O {[%clk 0:01:56.9]} 16. Nd2 {[%clk
0:02:46.7]} 16... f6 {[%clk 0:01:54.9]} 17. Nb3 {[%clk 0:02:44.4]} 17... Nb6
{[%clk 0:01:51.9]} 18. Rae1 {[%clk 0:02:36.5]} 18... Nc4 {[%clk 0:01:34.9]} 19.
R3e2 {[%clk 0:02:35.7]} 19... b6 {[%clk 0:01:34.8]} 20. g3 {[%clk 0:02:34.8]}
20... Rd7 {[%clk 0:01:29]} 21. Kg2 {[%clk 0:02:34.3]} 21... Rhd8 {[%clk
0:01:28.9]} 22. h4 {[%clk 0:02:34.6]} 22... a5 {[%clk 0:01:23.4]} 23. a4 {[%clk
0:02:34.3]} 23... Kc7 {[%clk 0:01:18.2]} 24. h5 {[%clk 0:02:29.5]} 24... h6
{[%clk 0:01:13.6]} 25. Kh3 {[%clk 0:02:28.3]} 25... Rd1 {[%clk 0:00:55.3]} 26.
Rxd1 {[%clk 0:02:19.7]} 26... Rxd1 {[%clk 0:00:56.2]} 27. Kg4 {[%clk 0:02:19.8]}
27... Nd6 {[%clk 0:00:33.7]} 28. Rd2 {[%clk 0:02:09.1]} 28... f5+ {[%clk
0:00:32.5]} 29. Kf3 {[%clk 0:02:08.3]} 29... Rb1 {[%clk 0:00:20.3]} 30. Re2
{[%clk 0:02:07.6]} 30... Nc4 {[%clk 0:00:17.2]} 31. g4 {[%clk 0:02:08]} 31...
fxg4+ {[%clk 0:00:12.1]} 32. Kxg4 {[%clk 0:02:08.9]} 32... Rxb2 {[%clk
0:00:12.7]} 33. Rxb2 {[%clk 0:02:07]} 33... Nxb2 {[%clk 0:00:13.6]} 34. Kf5
{[%clk 0:02:07.3]} 34... Nxa4 {[%clk 0:00:14]} 35. Kg6 {[%clk 0:02:06.3]} 35...
Nxc3 {[%clk 0:00:14.5]} 36. Kxg7 {[%clk 0:02:06.7]} 36... a4 {[%clk 0:00:15.1]}
37. Na1 {[%clk 0:02:06.7]} 37... b5 {[%clk 0:00:14.3]} 38. Nc2 {[%clk
0:02:06.7]} 38... Nd5 {[%clk 0:00:10.1]} 39. Kxh6 {[%clk 0:02:02.4]} 39... b4
{[%clk 0:00:10.6]} 40. Kg7 {[%clk 0:02:03]} 40... a3 {[%clk 0:00:03.1]} 41. h6
{[%clk 0:01:58.5]} 41... b3 {[%clk 0:00:02.7]} 42. Nxa3 {[%clk 0:01:58.1]} 1-0

[Event "Late-Titled-Tuesday-Blitz-May-28-2024"]
[Site "Chess.com"]
[Date "2024.05.28"]
[Round "8"]
[White "Qvalda"]
[Black "TatjanaVasilevich"]
[Result "0-1"]
[WhiteElo "2398"]
[BlackElo "2576"]
[TimeControl "180+1"]
[EndTime "15:27:06 PDT"]
[Termination "TatjanaVasilevich won by resignation"]

1. d4 {[%clk 0:03:00.9]} 1... Nf6 {[%clk 0:02:58.9]} 2. c4 {[%clk 0:03:00.3]}
2... e6 {[%clk 0:02:58.4]} 3. Bf4 {[%clk 0:03:00.7]} 3... Bb4+ {[%clk
0:02:55.5]} 4. Nd2 {[%clk 0:02:59.9]} 4... O-O {[%clk 0:02:53.6]} 5. a3 {[%clk
0:02:59.6]} 5... Bxd2+ {[%clk 0:02:52.4]} 6. Qxd2 {[%clk 0:03:00.5]} 6... d5
{[%clk 0:02:49]} 7. e3 {[%clk 0:03:00.1]} 7... b6 {[%clk 0:02:47]} 8. Nf3 {[%clk
0:03:00]} 8... dxc4 {[%clk 0:02:45.5]} 9. Bxc4 {[%clk 0:02:59.7]} 9... Ba6
{[%clk 0:02:46.1]} 10. Bxa6 {[%clk 0:02:58.3]} 10... Nxa6 {[%clk 0:02:47]} 11.
O-O {[%clk 0:02:58.5]} 11... c5 {[%clk 0:02:46.9]} 12. Rfd1 {[%clk 0:02:57.6]}
12... cxd4 {[%clk 0:02:45.8]} 13. Qxd4 {[%clk 0:02:52.2]} 13... Nc5 {[%clk
0:02:43.4]} 14. Qe5 {[%clk 0:02:42.6]} 14... Nd5 {[%clk 0:02:19.6]} 15. Bg3
{[%clk 0:02:29.4]} 15... f6 {[%clk 0:02:10.9]} 16. Qh5 {[%clk 0:02:18.2]} 16...
Qe7 {[%clk 0:02:03]} 17. b4 {[%clk 0:02:11.4]} 17... Ne4 {[%clk 0:02:02]} 18.
Qg4 {[%clk 0:02:07.2]} 18... f5 {[%clk 0:01:59.4]} 19. Qh3 {[%clk 0:02:06.8]}
19... g5 {[%clk 0:01:56.9]} 20. Ne5 {[%clk 0:01:56.2]} 20... Rac8 {[%clk
0:01:56.2]} 21. b5 {[%clk 0:01:54.2]} 21... Nec3 {[%clk 0:01:51.9]} 22. Re1
{[%clk 0:01:50.9]} 22... Nxb5 {[%clk 0:01:51]} 23. Qh5 {[%clk 0:01:43.5]} 23...
Nbc3 {[%clk 0:01:48.6]} 24. h4 {[%clk 0:01:21.5]} 24... g4 {[%clk 0:01:47.2]}
25. a4 {[%clk 0:01:13.1]} 25... Ne4 {[%clk 0:01:42.3]} 26. a5 {[%clk 0:01:09.1]}
26... Qg7 {[%clk 0:01:41.1]} 27. axb6 {[%clk 0:00:19]} 27... axb6 {[%clk
0:01:42]} 28. Nd3 {[%clk 0:00:12.6]} 28... Ndf6 {[%clk 0:01:40.1]} 29. Be5
{[%clk 0:00:12.7]} 29... Nxh5 {[%clk 0:01:39.5]} 30. Bxg7 {[%clk 0:00:11.8]}
30... Nxg7 {[%clk 0:01:40.4]} 31. Nf4 {[%clk 0:00:11.7]} 31... Ra8 {[%clk
0:01:36.9]} 32. Rab1 {[%clk 0:00:11.4]} 32... Rab8 {[%clk 0:01:33.4]} 33. Red1
{[%clk 0:00:11.2]} 33... Nc3 {[%clk 0:01:32.9]} 34. Rdc1 {[%clk 0:00:09.6]}
34... Nxb1 {[%clk 0:01:32.4]} 35. Rxb1 {[%clk 0:00:10.5]} 35... b5 {[%clk
0:01:33.3]} 0-1

[Event "Late-Titled-Tuesday-Blitz-May-28-2024"]
[Site "Chess.com"]
[Date "2024.05.28"]
[Round "8"]
[White "Charodej1"]
[Black "Byniolus"]
[Result "1/2-1/2"]
[WhiteElo "2496"]
[BlackElo "2734"]
[TimeControl "180+1"]
[EndTime "15:27:10 PDT"]
[Termination "Game drawn by repetition"]

1. e4 {[%clk 0:03:00.9]} 1... d6 {[%clk 0:03:00.5]} 2. d4 {[%clk 0:03:00.3]}
2... Nf6 {[%clk 0:03:01.4]} 3. Nc3 {[%clk 0:02:59.5]} 3... c6 {[%clk 0:03:02]}
4. f3 {[%clk 0:02:57.7]} 4... Qb6 {[%clk 0:03:01.9]} 5. Bc4 {[%clk 0:02:53.2]}
5... e6 {[%clk 0:03:02]} 6. Nge2 {[%clk 0:02:52.7]} 6... d5 {[%clk 0:03:02.6]}
7. Bd3 {[%clk 0:02:47.7]} 7... Be7 {[%clk 0:03:02.8]} 8. O-O {[%clk 0:02:46]}
8... Qd8 {[%clk 0:03:03.1]} 9. Kh1 {[%clk 0:02:43.2]} 9... b6 {[%clk 0:03:02.4]}
10. e5 {[%clk 0:02:39.3]} 10... Nfd7 {[%clk 0:03:02.1]} 11. f4 {[%clk
0:02:39.1]} 11... g6 {[%clk 0:02:59.3]} 12. f5 {[%clk 0:02:19.4]} 12... exf5
{[%clk 0:02:49]} 13. g4 {[%clk 0:01:53.1]} 13... fxg4 {[%clk 0:02:46.3]} 14. e6
{[%clk 0:01:34.2]} 14... fxe6 {[%clk 0:02:43.2]} 15. Ng3 {[%clk 0:01:25.2]}
15... Nf6 {[%clk 0:02:34.1]} 16. Bg5 {[%clk 0:01:24.6]} 16... Nbd7 {[%clk
0:02:11]} 17. Qe2 {[%clk 0:01:23.9]} 17... Nf8 {[%clk 0:01:27.2]} 18. Qf2 {[%clk
0:01:10.8]} 18... Kf7 {[%clk 0:01:13.9]} 19. Qf4 {[%clk 0:00:55]} 19... Kg7
{[%clk 0:00:51.4]} 20. Bh6+ {[%clk 0:00:53.9]} 20... Kg8 {[%clk 0:00:51.7]} 21.
Bg5 {[%clk 0:00:49.7]} 21... Kg7 {[%clk 0:00:30.9]} 22. Bh6+ {[%clk 0:00:49.6]}
22... Kg8 {[%clk 0:00:31.5]} 23. Bg5 {[%clk 0:00:50]} 23... Kg7 {[%clk
0:00:16.3]} 1/2-1/2

[Event "Late-Titled-Tuesday-Blitz-May-28-2024"]
[Site "Chess.com"]
[Date "2024.05.28"]
[Round "8"]
[White "Hirna2005"]
[Black "Alina_Gumerovna"]
[Result "0-1"]
[WhiteElo "2337"]
[BlackElo "2195"]
[TimeControl "180+1"]
[EndTime "15:27:12 PDT"]
[Termination "Alina_Gumerovna won by resignation"]

1. e4 {[%clk 0:03:00.9]} 1... e5 {[%clk 0:02:58.4]} 2. Nf3 {[%clk 0:03:00.6]}
2... Nf6 {[%clk 0:02:58.1]} 3. Nxe5 {[%clk 0:03:00.1]} 3... d6 {[%clk
0:02:58.7]} 4. Nf3 {[%clk 0:03:00.7]} 4... Nxe4 {[%clk 0:02:59.3]} 5. Nc3 {[%clk
0:03:01.2]} 5... Nxc3 {[%clk 0:02:59.2]} 6. dxc3 {[%clk 0:03:02.1]} 6... Be7
{[%clk 0:03:00]} 7. Bf4 {[%clk 0:03:01.9]} 7... Nd7 {[%clk 0:03:00.4]} 8. Qd2
{[%clk 0:03:02]} 8... O-O {[%clk 0:02:59.7]} 9. O-O-O {[%clk 0:03:01]} 9... Nf6
{[%clk 0:02:42.4]} 10. h3 {[%clk 0:02:59.1]} 10... c5 {[%clk 0:02:34.6]} 11. Bd3
{[%clk 0:02:45]} 11... Be6 {[%clk 0:02:25.3]} 12. a3 {[%clk 0:02:40.6]} 12... b5
{[%clk 0:02:18.3]} 13. Ng5 {[%clk 0:02:28.8]} 13... Bc4 {[%clk 0:01:57.3]} 14.
Bxc4 {[%clk 0:02:22.7]} 14... bxc4 {[%clk 0:01:55.1]} 15. Bxd6 {[%clk
0:02:22.6]} 15... Bxd6 {[%clk 0:01:52.8]} 16. Qxd6 {[%clk 0:02:22.1]} 16... Qa5
{[%clk 0:01:52.8]} 17. Rhe1 {[%clk 0:02:10.2]} 17... h6 {[%clk 0:01:34]} 18. Ne4
{[%clk 0:02:08.3]} 18... Nxe4 {[%clk 0:01:33.2]} 19. Rxe4 {[%clk 0:02:08.3]}
19... Rad8 {[%clk 0:01:29.2]} 20. Qf4 {[%clk 0:02:02.1]} 20... Rxd1+ {[%clk
0:01:25]} 21. Kxd1 {[%clk 0:02:02.2]} 21... Qb6 {[%clk 0:00:48.7]} 22. Rxc4
{[%clk 0:01:55.7]} 22... Qxb2 {[%clk 0:00:47.3]} 23. Qd6 {[%clk 0:01:41.1]}
23... Qa1+ {[%clk 0:00:25.3]} 24. Kd2 {[%clk 0:01:40.2]} 24... Re8 {[%clk
0:00:18.9]} 25. Re4 {[%clk 0:00:59.7]} 25... Rxe4 {[%clk 0:00:14.6]} 26. Kd3
{[%clk 0:01:00.1]} 26... Qd1+ {[%clk 0:00:13.7]} 27. Kxe4 {[%clk 0:01:00.4]}
27... Qxd6 {[%clk 0:00:14.6]} 0-1